Cogmind - Beta 13 @@@ ROGUE MODE // 2024.04.01 @ 23:33:18 Player: chexo4 Result: Destroyed by G-34 Mercenary with Small Laser Performance ------------- Evolutions (0) 0 Regions Visited (1) 200 Robots Destroyed (17) 85 Value Destroyed (178) 178 Prototype IDs (0) 0 Alien Tech Used (0) 0 Bonus (0) 0 TOTAL SCORE: 463 Bonus ------- None Cogmind --------- Core Integrity 0/250 Matter 158/300 Energy 100/100 System Corruption 0% Temperature Cool (6) Movement Core (1350) Ox26 Location -10/Materials Parts ------- > --- POWER (1) -------- (None) > --- PROPULSION (2) --- (None) > --- UTILITY (2) ------ Huge Storage Unit > --- WEAPON (2) ------- (None) > --- INVENTORY (25) --- Ion Engine Aluminum Leg Terrain Scan Processor EM Pulse Gun Peak State ------------ > --- POWER ------------ Ion Engine > --- PROPULSION ------- Aluminum Leg Aluminum Leg > --- UTILITY ---------- Small Storage Unit Huge Storage Unit > --- WEAPON ----------- EM Pulse Gun Light Assault Rifle > --- INVENTORY -------- Ion Engine Grenade Launcher [Rating: 7] Favorites ----------- Power Ion Engine Engine Ion Engine Propulsion Aluminum Leg Leg Aluminum Leg Wheel Wheel Utility Huge Storage Unit Storage Huge Storage Unit Protection Light Armor Plating Weapon Light Assault Rifle Energy Gun EM Pulse Gun Ballistic Gun Light Assault Rifle Launcher Grenade Launcher Build | -11 -10 ------- Run | Yrd Mat Slots Evolved . | . . Power . | . . Propulsion . | . . Utility . | . . Weapon . | . . Parts Attached 16 | 6 10 Power 1 | 1 . Engine 1 | 1 . Core . | . . Reactor . | . . Propulsion 6 | 2 4 Treads . | . . Leg 4 | 2 2 Wheel 2 | . 2 Hover . | . . Flight . | . . Utility 4 | 1 3 Device . | . . Storage 3 | 1 2 Processor . | . . Hackware . | . . Protection 1 | . 1 Artifact . | . . Weapon 5 | 2 3 Energy Gun 2 | 1 1 Energy Cannon . | . . Ballistic Gun 1 | 1 . Ballistic Cannon . | . . Launcher 2 | . 2 Special Weapon . | . . Impact Weapon . | . . Slashing Weapon . | . . Piercing Weapon . | . . Special Melee Weapon . | . . Unidentified Prototypes . | . . Parts Lost 6 | . 6 Power 1 | . 1 Propulsion 2 | . 2 Utility 1 | . 1 Weapon 2 | . 2 Highest Loss Streak 6 | . 6 To Critical Strikes . | . . Average Slot Usage (%) 92 | . 92 Engine 13 | . 13 Leg 23 | . 23 Wheel 3 | . 3 Storage 14 | . 14 Protection 10 | . 10 Energy Gun 1 | . 1 Ballistic Gun 13 | . 13 Launcher 11 | . 11 Naked Turns . | . . Heaviest Build 92 | 13 92 Greatest Support 26 | 20 26 Greatest Overweight (x) 26 | . 26 Average Overweight (x) 2 | . 3 Largest Inventory Capacity 25 | 8 25 Average Capacity 20 | 7 24 Most Carried 6 | 5 6 Average Carried 2 | 1 2 Final Capacity 25 | 8 25 Final Carried 4 | 1 4 Class Distribution -------------------- 100% | Mutant Dominant Class ---------------- Mutant | -10/Materials Resources | -11 -10 ----------- Run | Yrd Mat Matter Collected 353 | 285 68 Remotely . | . . Salvage Created 347 | 216 131 Parts 38 | 11 27 Haulers Intercepted . | . . Recyclers Shooed . | . . Parts Field Recycled . | . . Retrieved Matter . | . . Parts Self-Destructed . | . . Prevented . | . . Kills | -11 -10 ------- Run | Yrd Mat Combat Hostiles Destroyed 5 | . 5 AOE 5 | . 5 Classes Destroyed 7 | 3 4 Worker 3 | 2 1 Builder 2 | . 2 Tunneler 5 | 4 1 Recycler 1 | 1 . Watcher 1 | . 1 Swarmer 3 | . 3 Grunt 2 | . 2 Best Kill Streak 6 | 4 6 Combat Bots Only 5 | . 5 Max Kills in Single Turn 2 | 1 2 Gunslinging . | . . Exploded 1 | . 1 Melee . | . . Uniques/NPCs Destroyed . | . . Combat | -11 -10 -------- Run | Yrd Mat Hostile Shots Fired 89 | . 89 Missed 27 | . 27 Damage Taken 833 | 65 768 Core 259 | 29 230 Absorbed by Shields . | . . Core Remaining (%) 88 | 88 . Volleys Fired 53 | 25 28 Largest 2 | 2 2 Hottest 60 | 60 50 Shots Fired 82 | 50 32 Gun 70 | 50 20 Cannon . | . . Launcher 12 | . 12 Special . | . . Kinetic 45 | 25 20 Thermal . | . . Explosive 12 | . 12 Electromagnetic 25 | 25 . Robot Hit Streak 12 | 12 6 Robot Miss Streak 3 | 3 3 Penetration Max . | . . Secondary Targets . | . . Shots Hit Robots 47 | 30 17 Core Hits 28 | 11 17 Critical Kills . | . . Critical Parts Destroyed . | . . Critical Strikes 1 | 1 . Corrupt 1 | 1 . Melee Attacks . | . . Impact . | . . Slashing . | . . Piercing . | . . Sneak Attacks . | . . Combat Hostiles . | . . Follow-up Attacks . | . . Damage Inflicted 967 | 431 536 Guns 446 | 332 114 Cannons . | . . Explosions 492 | 85 407 Melee . | . . Ramming 29 | 14 15 Kinetic 207 | 93 114 Thermal 85 | 85 . Explosive 407 | . 407 Electromagnetic 239 | 239 . Impact . | . . Slashing . | . . Piercing . | . . Highest Corruption . | . . Average Corruption . | . . Corruption Purged . | . . Corruption Blocked . | . . Overload Shots . | . . Overflow Damage 4 | . 4 Projectiles . | . . Explosions 4 | . 4 Melee . | . . Knockbacks . | . . Impact . | . . Kinetic . | . . Secondary . | . . Self-Inflicted Damage 100 | 65 35 Shots 4 | 2 2 Rammed . | . . Targets Rammed 6 | 5 1 Kicked 6 | 5 1 Crushed . | . . Highest Temperature 84 | 84 25 Average Temperature 25 | 32 8 Received Heat Transfer 393 | . 393 Siege Activations . | . . Robots Corrupted . | . . Combat Hostiles . | . . Parts Fried 2 | 2 . Impact Corruptions . | . . Robots Melted . | . . Combat Hostiles . | . . Parts Melted . | . . Heat Transferred 150 | 150 . Parts Sabotaged . | . . Parts Stolen . | . . Parts Stripped . | . . Power Chain Reactions 2 | 2 . Alert | -11 -10 ------- Run | Yrd Mat Peak Influence 210 | 35 210 Initial 22 | . 22 Average 85 | 17 108 Maximum Alert Level 1 | . 1 Low Security (%) 80 | 100 73 Level 1 20 | . 26 Level 2 . | . . Level 3 . | . . Level 4 . | . . Level 5 . | . . High Security . | . . Max Security . | . . Squads Dispatched 1 | . 1 Investigation . | . . Extermination . | . . Reinforcement 1 | . 1 Assault . | . . Garrison . | . . Intercept . | . . Searches Triggered . | . . Construction Impeded . | . . Haulers Reinforced . | . . Active Scanning Responses . | . . Cargo Convoy Interrupts . | . . Stealth | -11 -10 --------- Run | Yrd Mat Distress Signals . | . . Communications Jammed . | . . Distress Signals . | . . Times Spotted 11 | . 11 Peak Tracking Total 3 | . 3 Tactical Retreats 1 | . 1 Traps | -11 -10 ------- Run | Yrd Mat Traps Triggered . | . . Indirectly . | . . Trap Hack Attempts . | . . Triggered . | . . Disarmed . | . . Reprogrammed . | . . Reused . | . . Traps Extracted . | . . Installed . | . . Triggered . | . . Machines | -11 -10 ---------- Run | Yrd Mat Machines Disabled 1 | . 1 Max in Single Turn 1 | . 1 Machines Repaired . | . . Machines Dismantled . | . . Machines Sabotaged . | . . Overloaded Fab Kills . | . . Hacking | -11 -10 --------- Run | Yrd Mat Machines Accessed 1 | . 1 Terminals . | . . Fabricators . | . . Repair Stations . | . . Recycling Units 1 | . 1 Scanalyzers . | . . Garrison Access . | . . Total Hacks 3 | . 3 Successful 2 | . 2 Failed 1 | . 1 Catastrophic . | . . Database Lockouts . | . . Manual . | . . Terminals . | . . Fabricators . | . . Repair Stations . | . . Recycling Units 3 | . 3 Scanalyzers . | . . Garrison Access . | . . Terminal Hacks . | . . Fabricator Hacks . | . . Repair Station Hacks . | . . Recycling Unit Hacks 2 | . 2 Retrieve Matter 1 | . 1 Retrieve Components 1 | . 1 Scanalyzer . | . . Garrison Access Hacks . | . . Unauthorized Hacks . | . . Terminals . | . . Fabricators . | . . Repair Stations . | . . Recycling Units . | . . Scanalyzers . | . . Garrison Access . | . . Data Cores Recovered . | . . Used . | . . Hacking Detections . | . . Full Trace Events . | . . Feedback Events . | . . Feedback Blocked . | . . Robot Schematics Acquired . | . . Robots Built . | . . Authchips . | . . Time . | . . Total Robot Build Rating . | . . Part Schematics Acquired . | . . Parts Built . | . . Authchips . | . . Time . | . . Total Part Build Rating . | . . Parts Repaired . | . . Time . | . . Parts Recycled . | . . Recycled Matter . | . . Retrieved Matter . | . . Retrieved Components 7 | . 7 Parts Scanalyzed . | . . Part Schematics Acquired . | . . Parts Damaged . | . . Bothacking | -11 -10 ------------ Run | Yrd Mat Used RIF Installer . | . . Robots Hacked . | . . Non-combat . | . . Combat . | . . Robot Hacks Applied . | . . Relay Couplers Released . | . . Fabnet Peak Effective % . | . . Robots Rewired . | . . Allies Hacked . | . . Hacks Repelled . | . . Allies | -11 -10 -------- Run | Yrd Mat Total Allies . | . . Largest Group . | . . Highest-Rated Group . | . . Highest-Rated Ally . | . . Total Orders . | . . Ally Attacks . | . . Total Damage . | . . Kills . | . . Allies Corrupted . | . . Allies Melted . | . . Intel | -11 -10 ------- Run | Yrd Mat Robot Analysis Total . | . . Derelict Logs Recovered . | . . Drone Launches . | . . Drone Recoveries . | . . Exploration | -11 -10 ------------- Run | Yrd Mat Turns Passed 1040 | 266 774 Spaces Moved 378 | 167 211 Core 33 | 31 2 Treads . | . . Legs 296 | 136 160 Wheels 49 | . 49 Hover . | . . Flight . | . . Fastest Speed 50 | 50 120 Average Speed 232 | 107 332 Slowest Speed 1350 | 120 1350 Overloaded Moves . | . . Propulsion Burnouts . | . . Robots Hopped . | . . Cave-ins Triggered . | . . Exploration Rate (%) 20 | 7 34 Regions Visited 1 Branch Regions . Pre-discovered Areas . | . . Known Exits Taken . | . . Unknown Exits Taken 1 | 1 . Scrap Searched . | . . Spaces Dug . | . . Terrain Destroyed 80 | . 80 Melee . | . . Projectile . | . . AOE 80 | . 80 Terrain Rammed . | . . Walls Destroyed . | . . Machines Disabled . | . . Actions | -11 -10 --------- Run | Yrd Mat Total 470 | 208 262 Wait . | . . Move 377 | 166 211 Hop . | . . Pick Up 13 | 6 7 Fast Attach 1 | 1 . Attach 8 | 5 3 Detach 2 | . 2 Swap 7 | . 7 Drop 3 | . 3 Fire 53 | 25 28 Melee . | . . Ram . | . . Kick 6 | 5 1 Crush . | . . Escape Stasis . | . . Rewire . | . . Trap . | . . Miscellaneous . | . . Route ------- -11/Scrapyard -10/Materials (discovered 1 exit: [*Mat]) History --------- Turn | Location | Event 6 | -11/Scrapyard | Discovered new exit (range 16) 267 | -11/Scrapyard | Entered Materials 311 | -10/Materials | Build established: Mutant 917 | -10/Materials | Discovered new exit (range 15) 1017 | -10/Materials | Core integrity fell below 50% 1036 | -10/Materials | Core integrity fell below 20% 1041 | -10/Materials | Destroyed by G-34 Mercenary with Small Laser Last Messages --------------- U-05 Engineer lays Concrete. U-05 Engineer builds a Wall. K-01 Serf cleans the Terminal. T-07 Excavator is excavating. K-01 Serf cleans the Terminal. K-01 Serf destroyed. K-01 Serf collects debris. Grenade Launcher destroyed. K-01 Serf collects debris. M-13 Machinist repairs G-47 Trooper. K-01 Serf collects debris. Lgt. Armor Plating destroyed. Ion Engine destroyed. Aluminum Leg destroyed. Lgt. Assault Rifle destroyed. M-13 Machinist repairs G-47 Trooper. Aluminum Leg destroyed. K-01 Serf collects debris. Critical hit (Burn: +37). R-06 Scavenger collects Wheel. Map ----- +----------------------------------------------------+ | ????????????????????????????? | | ????????????????????????????? | | ????????????????????????????? | | ????????????????????????????? | | ????????????????????????????? | | ????????????????????????????? | | ????????????????????????????? | | ????????????????????????????? | | ????????????????????????????? | | ????????????????????????????? | | ??????????? ????????????????? | | ?????????? #???????????????? | | ?????????? ???????????????? | | ????????? #####???????????? | | ????????? ???????????? | | ????????? ????????????? | | ????????? ????????????? | | ????????? ^ ?????????????? | | ????????? ^ ??? ???? ?? | | ??####### ""T"" ???" "" | | ??#!!% """"" ?? | | ??#!!* r ?? | | ??#[[ gg m ?? | | ??#[[ ########+# | | ??#// #???????# # | | ??#/@ ##???????#" %*# | | ??##### #????????#T # | | ?????## ##???????#" """" # | | ?????# #??????## """ # | | ?????# #???##### """ # | | ?????# ###### ###### #### | | ?????# | | ?????# ###### | | ?????## ##????# | | ????! #?????######### # | | ??#! #?????????????## | | ??#! ^#??????????????# " | | ??#! ^ ^#??????????????# |" | | ??#! #??????????????# | | ??##! #??????????????# | | | ???#### #??????????????# | | ??????# #??????????????#### | | ??????# #?????????????????? | | ??????# #?????????????????? | | ??????# ??????????????????? | | ??????# < ??????????????????? | | ??????? ??????????????????? | | ????????????????????????????? | | ????????????????????????????? | | ????????????????????????????? | +----------------------------------------------------+ Best States ------------- Heat Dissipation 25 Energy Generation 10 Energy Capacity 250 Matter Stores 300 Matter Capacity 300 Sight Range 16 Terrain Scan Density 10 Armor Coverage 150 Evasion (%) 55 Item Schematics ----------------- None Robot Schematics ------------------ None Fabricated ------------ Nothing Alien Tech Used ----------------- None Achievements -------------- None Challenges ------------ None Game ------ Seed MediumEncryptedMembrane Manual? 0 Play Time 00:10:06 Cumulative 2.1 hours Start 2024.04.01 @ 23:24:54 End 2024.04.01 @ 23:33:18 Sessions 1 Manual Loads 0 Difficulty Rogue Special Mode None Game No. 6 Rogue 6 Adventurer 0 Explorer 0 Win Type - Total 0 Types 0/0/0/0/0/0/0/0/0 Lore% 7 Gallery% 5 Achievement% 6 Wizard Run 0 Options --------- Layout 1 ASCII 0 Keyboard 0 Movement Arrows Keybinds 0 Fullscreen 1 Font 24/Smallcaps Map View 50x35 Zoom Use 0% Tactical HUD 0 Map Filters NONE Filters NONE Steam 1 RUN: 87a1f9ea-220c-4053-ad62-ed275d22a813